fUSD/lending_fUSD_20250115
["ID","MTS","AMOUNT","RATE_DAILY","PERIOD"]
[349014336,1736937040827,-500.0,0.00010819,2]
[349014337,1736937040837,-500.0,0.00010819,2]
[349014338,1736937040847,-500.0,0.00010819,2]
[349014339,1736937040856,-500.0,0.00010819,2]
[349014340,1736937040866,-500.0,0.00010819,2]
[349014341,1736937040875,-500.0,0.00010819,2]
[349014342,1736937040884,-500.0,0.00010819,2]
[349014343,1736937040894,-500.0,0.00010819,2]
[349014344,1736937040903,-500.0,0.00010819,2]
[349014345,1736937040912,-500.0,0.00010819,2]
[349014346,1736937040921,-500.0,0.00010819,2]
[349014347,1736937040930,-500.0,0.00010819,2]
[349014348,1736937040940,-500.0,0.00010819,2]
[349014349,1736937040951,-943.65,0.0001082,2]
[349014350,1736937041122,-593.15,0.0001082,2]
[349014351,1736937041132,-500.0,0.0001082,2]
[349014352,1736937041142,-500.0,0.0001082,2]
[349014353,1736937041151,-500.0,0.0001082,2]
[349014354,1736937041161,-500.0,0.0001082,2]
[349014355,1736937041170,-500.0,0.00010821,2]
[349014356,1736937041180,-500.0,0.00010821,2]
[349014357,1736937041190,-493.0,0.00010821,2]
[349014358,1736937041200,-500.0,0.00010821,2]
[349014359,1736937041210,-331.90511898,0.00010821,2]
[349014360,1736937041220,-500.0,0.00010821,2]
[349014361,1736937041230,-500.0,0.00010821,2]
[349014362,1736937041240,-500.0,0.00010821,2]
[349014363,1736937041249,-500.0,0.00010821,2]
[349014364,1736937041259,-601.22,0.00010821,2]
[349014365,1736937041269,-500.0,0.00010821,2]
[349014366,1736937041278,-500.0,0.00010821,2]
[349014367,1736937041288,-550.0,0.00011,2]
[349014368,1736937041298,-11142.9748416,0.00011,2]
[349014369,1736937041308,-587.0,0.00011085,2]
[349014370,1736937041317,-500.0,0.00011092,2]
[349014371,1736937041327,-500.0,0.00011092,2]
[349014372,1736937041336,-500.0,0.00011092,2]
[349014373,1736937041346,-500.0,0.00011092,2]
[349014374,1736937041355,-500.0,0.00011092,2]
[349014375,1736937041364,-500.0,0.00011092,2]
[349014376,1736937041374,-500.0,0.00011092,2]
[349014377,1736937041383,-500.0,0.00011092,2]
[349014378,1736937041393,-500.0,0.00011092,2]
[349014379,1736937041402,-500.0,0.00011092,2]
[349014380,1736937041411,-748.08,0.00011092,2]
[349014381,1736937041420,-500.0,0.00011092,2]
[349014382,1736937041429,-375.70659874,0.00011092,2]
[349014383,1736937041438,-500.0,0.00011092,2]
[349014384,1736937041448,-500.0,0.00011092,2]
[349014385,1736937041457,-500.0,0.00011092,2]
[349014386,1736937041467,-524.32,0.00011092,2]
[349014387,1736937041476,-402.33,0.00011092,2]
[349014388,1736937041485,-500.0,0.00011092,2]
[349014389,1736937041495,-500.0,0.00011092,2]
[349014390,1736937041504,-500.0,0.00011092,2]
[349014391,1736937041514,-582.19,0.00011092,2]
[349014392,1736937041523,-175.926455,0.00011092,2]
[349014393,1736937041534,-500.0,0.00011092,2]
[349014394,1736937041547,-500.0,0.00011092,2]
[349014395,1736937041559,-601.03,0.00011092,2]
[349014396,1736937041568,-525.14,0.00011092,2]
[349014397,1736937041577,-500.0,0.00011092,2]
[349014398,1736937041587,-1262.75,0.00011092,2]
[349014399,1736937041596,-500.0,0.00011092,2]
[349014400,1736937041606,-755.67,0.00011092,2]
[349014401,1736937041616,-710.58,0.00011092,2]
[349014402,1736937041627,-1145.95,0.00011092,2]
[349014403,1736937041638,-500.0,0.00011092,2]
[349014404,1736937041647,-500.0,0.00011092,2]
[349014405,1736937041658,-500.0,0.00011093,2]
[349014406,1736937041668,-505.36,0.00011093,2]
[349014407,1736937041677,-500.0,0.00011093,2]
[349014408,1736937041687,-500.0,0.00011093,2]
[349014409,1736937041697,-500.0,0.00011093,2]
[349014410,1736937041707,-500.0,0.00011093,2]
[349014411,1736937041716,-500.0,0.00011093,2]
[349014412,1736937041728,-500.0,0.00011093,2]
[349014413,1736937041739,-500.0,0.00011093,2]
[349014414,1736937041750,-500.0,0.00011093,2]
[349014415,1736937041762,-500.0,0.00011093,2]
[349014416,1736937041771,-500.0,0.00011093,2]
[349014417,1736937041781,-640.94,0.00011093,2]
[349014418,1736937041792,-500.0,0.00011093,2]
[349014419,1736937041802,-500.0,0.00011093,2]
[349014420,1736937041811,-500.0,0.00011093,2]
[349014421,1736937041820,-500.0,0.00011093,2]
[349014422,1736937041830,-500.0,0.00011093,2]
[349014423,1736937041839,-500.0,0.00011093,2]
[349014424,1736937041849,-500.0,0.00011093,2]
[349014425,1736937041859,-500.0,0.00011093,2]
[349014426,1736937041868,-500.0,0.00011093,2]
[349014427,1736937041877,-500.0,0.00011093,2]
[349014428,1736937041886,-500.0,0.00011093,2]
[349014429,1736937041895,-500.0,0.00011093,2]
[349014430,1736937041905,-500.0,0.00011093,2]
[349014431,1736937041914,-500.0,0.00011093,2]
[349014432,1736937041923,-500.0,0.00011093,2]
[349014433,1736937041933,-500.0,0.00011093,2]
[349014434,1736937041943,-500.0,0.00011093,2]
[349014435,1736937041954,-500.0,0.00011093,2]
[349014436,1736937041964,-649.53,0.00011093,2]
[349014437,1736937041973,-500.0,0.00011093,2]
[349014438,1736937041983,-617.25,0.00011093,2]
[349014439,1736937041992,-500.0,0.00011093,2]
[349014440,1736937042001,-500.0,0.00011093,2]
[349014441,1736937042011,-500.0,0.00011093,2]
[349014442,1736937042020,-500.0,0.00011093,2]
[349014443,1736937042030,-500.0,0.00011093,2]
[349014444,1736937042040,-500.0,0.00011093,2]
[349014445,1736937042052,-500.0,0.00011093,2]
[349014446,1736937042061,-500.0,0.00011093,2]
[349014447,1736937042071,-627.69,0.00011093,2]
[349014448,1736937042080,-500.0,0.00011093,2]
[349014449,1736937042090,-500.0,0.00011093,2]
[349014450,1736937042100,-500.0,0.00011093,2]
[349014451,1736937042110,-500.0,0.00011093,2]
[349014452,1736937042120,-500.0,0.00011093,2]
[349014453,1736937042130,-500.0,0.00011093,2]
[349014454,1736937042138,-500.0,0.00011093,2]
[349014455,1736937042148,-500.0,0.00011093,2]
[349014456,1736937042157,-500.0,0.00011093,2]
[349014457,1736937042167,-500.0,0.00011093,2]
[349014458,1736937042176,-500.0,0.00011093,2]
[349014459,1736937042185,-500.0,0.00011093,2]
[349014460,1736937042195,-500.0,0.00011093,2]
[349014461,1736937042205,-500.0,0.00011093,2]
[349014462,1736937042215,-500.0,0.00011093,2]
[349014463,1736937042225,-500.0,0.00011093,2]
[349014464,1736937042235,-500.0,0.00011093,2]
[349014465,1736937042245,-500.0,0.00011093,2]
[349014466,1736937042254,-593.15,0.00011094,2]
[349014467,1736937042264,-500.0,0.00011094,2]
[349014468,1736937042273,-500.0,0.00011094,2]
[349014469,1736937042283,-500.0,0.00011094,2]
[349014470,1736937042292,-500.0,0.00011094,2]
[349014471,1736937042302,-500.8,0.00011095,2]
[349014472,1736937042312,-500.0,0.00011095,2]
[349014473,1736937042322,-500.0,0.00011095,2]
[349014474,1736937042331,-500.0,0.00011095,2]
[349014475,1736937042340,-500.0,0.00011095,2]
[349014476,1736937042350,-601.22,0.00011095,2]
[349014477,1736937042359,-500.0,0.00011095,2]
[349014478,1736937042368,-500.0,0.00011095,2]
[349014479,1736937042378,-500.0,0.00011102,2]
[349014480,1736937042387,-250.0,0.00011199,2]
[349014481,1736937042397,-400.0,0.00011219,2]
[349014482,1736937042406,-1658.293,0.00011266,2]
[349014483,1736937042415,-500.0,0.00011366,2]
[349014484,1736937042425,-500.0,0.00011366,2]
[349014485,1736937042434,-500.0,0.00011366,2]
[349014486,1736937042443,-500.0,0.00011366,2]
[349014487,1736937042453,-500.0,0.00011366,2]
[349014488,1736937042462,-500.0,0.00011366,2]
[349014489,1736937042471,-748.08,0.00011366,2]
[349014490,1736937042481,-500.0,0.00011366,2]
[349014491,1736937042490,-500.0,0.00011366,2]
[349014492,1736937042500,-500.0,0.00011366,2]
[349014493,1736937042509,-500.0,0.00011366,2]
[349014494,1736937042518,-524.32,0.00011366,2]
[349014495,1736937042528,-500.0,0.00011366,2]
[349014496,1736937042538,-500.0,0.00011366,2]
[349014497,1736937042550,-500.0,0.00011366,2]
[349014498,1736937042559,-582.19,0.00011366,2]
[349014499,1736937042569,-175.926455,0.00011366,2]
[349014500,1736937042578,-500.0,0.00011366,2]
[349014501,1736937042587,-500.0,0.00011366,2]
[349014502,1736937042597,-601.03,0.00011366,2]
[349014503,1736937042609,-525.14,0.00011366,2]
[349014504,1736937042620,-500.0,0.00011366,2]
[349014505,1736937042631,-1262.75,0.00011366,2]
[349014506,1736937042641,-500.0,0.00011366,2]
[349014507,1736937042652,-500.0,0.00011366,2]
[349014508,1736937042662,-755.67,0.00011366,2]
[349014510,1736937042671,-710.58,0.00011366,2]
[349014512,1736937042680,-1145.95,0.00011366,2]
[349014514,1736937042689,-164.632628,0.00011366,2]
[349014515,1736937042698,-500.0,0.00011366,2]
[349014517,1736937042708,-500.0,0.00011366,2]
[349014518,1736937042716,-500.0,0.00011367,2]
[349014519,1736937042725,-500.0,0.00011367,2]
[349014520,1736937042735,-500.0,0.00011367,2]
[349014521,1736937042744,-216.84431814,0.00011367,2]
[349014522,1736937042753,-500.0,0.00011367,2]
[349014525,1736937042762,-640.94,0.00011367,2]
[349014527,1736937042771,-552.21,0.00011367,2]
[349014529,1736937042781,-327.6,0.00011367,2]
[349014531,1736937042790,-500.0,0.00011367,2]
[349014533,1736937042799,-500.0,0.00011367,2]
[349014535,1736937042808,-500.0,0.00011367,2]
[349014537,1736937042818,-500.0,0.00011367,2]
[349014539,1736937042827,-330.38,0.00011367,2]
[349014541,1736937042836,-500.0,0.00011367,2]
[349014543,1736937042845,-500.0,0.00011367,2]
[349014545,1736937042855,-500.0,0.00011367,2]
[349014547,1736937042865,-500.0,0.00011367,2]
[349014549,1736937042874,-500.0,0.00011367,2]
[349014551,1736937042883,-518.69,0.00011367,2]
[349014552,1736937042892,-631.87,0.00011367,2]
[349014553,1736937042902,-543.72,0.00011367,2]
[349014554,1736937042911,-500.0,0.00011367,2]
[349014555,1736937042920,-500.0,0.00011367,2]
[349014556,1736937042929,-168.09,0.00011367,2]
[349014558,1736937042939,-500.0,0.00011367,2]
[349014560,1736937042948,-223.14,0.00011367,2]
[349014561,1736937042958,-244.72,0.00011367,2]
[349014562,1736937042967,-500.0,0.00011367,2]
[349014563,1736937042976,-213.52,0.00011367,2]
[349014564,1736937042986,-500.0,0.00011367,2]
[349014565,1736937042996,-500.0,0.00011367,2]
[349014566,1736937043005,-500.0,0.00011367,2]
[349014567,1736937043015,-500.0,0.00011367,2]
[349014568,1736937043026,-1007.85,0.00011368,2]
[349014569,1736937043035,-593.15,0.00011368,2]
[349014570,1736937043045,-500.0,0.00011368,2]
[349014571,1736937043055,-500.0,0.00011368,2]
[349014572,1736937043066,-500.0,0.00011368,2]
[349014573,1736937043077,-500.0,0.00011368,2]
[349014574,1736937043087,-161.5,0.00011369,2]
[349014575,1736937043099,-500.0,0.00011369,2]
[349014576,1736937043109,-500.0,0.00011369,2]
[349014577,1736937043118,-500.0,0.00011369,2]
[349014578,1736937043128,-601.22,0.00011369,2]
[349014579,1736937043137,-500.0,0.00011369,2]
[349014580,1736937043147,-500.0,0.00011369,2]
[349014581,1736937043157,-250.0,0.00011377,2]
[349014582,1736937043166,-163.89,0.00011525,2]
[349014583,1736937043176,-500.0,0.0001164,2]
[349014584,1736937043186,-500.0,0.0001164,2]
[349014585,1736937043197,-500.0,0.0001164,2]
[349014586,1736937043206,-500.0,0.0001164,2]
[349014587,1736937043215,-500.0,0.0001164,2]
[349014588,1736937043225,-500.0,0.0001164,2]
[349014589,1736937043235,-748.08,0.0001164,2]
[349014590,1736937043245,-500.0,0.0001164,2]
[349014591,1736937043254,-500.0,0.0001164,2]
[349014593,1736937043264,-500.0,0.0001164,2]
[349014595,1736937043273,-500.0,0.0001164,2]
[349014597,1736937043282,-524.32,0.0001164,2]
[349014599,1736937043292,-500.0,0.0001164,2]
[349014601,1736937043301,-500.0,0.0001164,2]
[349014603,1736937043311,-500.0,0.0001164,2]
[349014605,1736937043320,-582.19,0.0001164,2]
[349014607,1736937043330,-175.926455,0.0001164,2]
[349014609,1736937043339,-500.0,0.0001164,2]
[349014611,1736937043348,-500.0,0.0001164,2]
[349014613,1736937043359,-601.03,0.0001164,2]
[349014615,1736937043367,-525.14,0.0001164,2]
[349014617,1736937043376,-500.0,0.0001164,2]
[349014619,1736937043386,-1262.75,0.0001164,2]
[349014621,1736937043395,-500.0,0.0001164,2]
[349014622,1736937043404,-755.67,0.0001164,2]
[349014623,1736937043414,-710.58,0.0001164,2]
[349014624,1736937043423,-1145.95,0.0001164,2]
[349014625,1736937043433,-500.0,0.0001164,2]
[349014627,1736937043443,-500.0,0.00011641,2]
[349014628,1736937043453,-500.0,0.00011641,2]
[349014629,1736937043463,-500.0,0.00011641,2]
[349014630,1736937043510,-640.94,0.00011641,2]
[349014631,1736937043519,-500.0,0.00011641,2]
[349014632,1736937043528,-500.0,0.00011641,2]
[349014633,1736937043536,-524.18,0.00011641,2]
[349014634,1736937043547,-212.73,0.00011641,2]
[349014635,1736937043559,-500.0,0.00011641,2]
[349014636,1736937043569,-500.0,0.00011641,2]
[349014637,1736937043578,-500.0,0.00011641,2]
[349014638,1736937043587,-205.68,0.00011641,2]
[349014639,1736937043596,-500.0,0.00011641,2]
[349014640,1736937043606,-500.0,0.00011641,2]
[349014641,1736937043615,-500.0,0.00011641,2]
[349014642,1736937043625,-500.0,0.00011641,2]
[349014643,1736937043635,-500.0,0.00011641,2]
[349014644,1736937043644,-593.15,0.00011642,2]
[349014645,1736937043653,-500.0,0.00011642,2]
[349014646,1736937043662,-500.0,0.00011642,2]
[349014647,1736937043672,-500.0,0.00011642,2]
[349014648,1736937043681,-500.0,0.00011642,2]
[349014649,1736937043690,-500.0,0.00011643,2]
[349014650,1736937043699,-500.0,0.00011643,2]
[349014651,1736937043708,-500.0,0.00011643,2]
[349014652,1736937043717,-601.22,0.00011643,2]
[349014653,1736937043726,-500.0,0.00011643,2]
[349014654,1736937043735,-500.0,0.00011643,2]
[349014655,1736937043745,-2000.0,0.000119,4]
[349014656,1736937043754,-236.48342629,0.000119,2]
[349014657,1736937043764,-500.0,0.00011914,2]
[349014658,1736937043773,-500.0,0.00011914,2]
[349014659,1736937043783,-500.0,0.00011914,2]
[349014660,1736937043792,-500.0,0.00011914,2]
[349014661,1736937043801,-500.0,0.00011914,2]
[349014662,1736937043810,-500.0,0.00011914,2]
[349014663,1736937043819,-748.08,0.00011914,2]
[349014664,1736937043828,-500.0,0.00011914,2]
[349014665,1736937043837,-500.0,0.00011914,2]
[349014666,1736937043846,-500.0,0.00011914,2]
[349014667,1736937043855,-500.0,0.00011914,2]
[349014668,1736937043865,-524.32,0.00011914,2]
[349014669,1736937043874,-500.0,0.00011914,2]
[349014670,1736937043883,-500.0,0.00011914,2]
[349014671,1736937043892,-582.19,0.00011914,2]
[349014672,1736937043902,-500.0,0.00011914,2]
[349014673,1736937043911,-175.926455,0.00011914,2]
[349014674,1736937043920,-500.0,0.00011914,2]
[349014675,1736937043930,-500.0,0.00011914,2]
[349014676,1736937043939,-601.03,0.00011914,2]
[349014677,1736937043948,-525.14,0.00011914,2]
[349014678,1736937043957,-500.0,0.00011914,2]
[349014679,1736937043966,-1262.75,0.00011914,2]
[349014680,1736937043975,-500.0,0.00011914,2]
[349014681,1736937043984,-500.0,0.00011914,2]
[349014682,1736937043994,-755.67,0.00011914,2]
[349014683,1736937044004,-710.58,0.00011914,2]
[349014684,1736937044013,-1145.95,0.00011914,2]
[349014685,1736937044023,-164.632628,0.00011914,2]
[349014686,1736937044032,-500.0,0.00011914,2]
[349014687,1736937044042,-500.0,0.00011915,2]
[349014688,1736937044052,-500.0,0.00011915,2]
[349014689,1736937044061,-500.0,0.00011915,2]
[349014690,1736937044071,-640.94,0.00011915,2]
[349014691,1736937044080,-187.15971547,0.00011915,2]
[349014692,1736937044088,-500.0,0.00011915,2]
[349014693,1736937044097,-500.0,0.00011915,2]
[349014694,1736937044107,-562.35,0.00011915,2]
[349014695,1736937044117,-639.03,0.00011915,2]
[349014696,1736937044126,-500.0,0.00011915,2]
[349014697,1736937044135,-500.0,0.00011915,2]
[349014698,1736937044145,-500.0,0.00011915,2]
[349014699,1736937044154,-500.0,0.00011915,2]
[349014700,1736937044165,-500.0,0.00011915,2]
[349014701,1736937044174,-593.15,0.00011916,2]
[349014702,1736937044183,-500.0,0.00011916,2]
[349014703,1736937044194,-500.0,0.00011916,2]
[349014704,1736937044204,-500.0,0.00011916,2]
[349014705,1736937044213,-500.0,0.00011916,2]
[349014706,1736937044224,-500.0,0.00011917,2]
[349014707,1736937044233,-500.0,0.00011917,2]
[349014708,1736937044243,-198.75805012,0.00011917,2]
[349014709,1736937044252,-601.22,0.00011917,2]
[349014710,1736937044261,-500.0,0.00011917,2]
[349014711,1736937044271,-500.0,0.00011917,2]
[349014712,1736937044280,-980.30617788,0.00012,2]
[349014713,1736937044289,-148326.61074895,0.0001208,2]
[349014714,1736937044299,-500.0,0.00012105,2]
[349014715,1736937044308,-500.0,0.00012188,2]
[349014716,1736937044318,-500.0,0.00012188,2]
[349014717,1736937044327,-500.0,0.00012188,2]
[349014718,1736937044336,-500.0,0.00012188,2]
[349014719,1736937044346,-500.0,0.00012188,2]
[349014720,1736937044356,-500.0,0.00012188,2]
[349014721,1736937044365,-748.08,0.00012188,2]
[349014722,1736937044374,-500.0,0.00012188,2]
[349014723,1736937044383,-500.0,0.00012188,2]
[349014724,1736937044392,-500.0,0.00012188,2]
[349014725,1736937044401,-500.0,0.00012188,2]
[349014726,1736937044410,-524.32,0.00012188,2]
[349014727,1736937044419,-500.0,0.00012188,2]
[349014728,1736937044428,-500.0,0.00012188,2]
[349014729,1736937044437,-582.19,0.00012188,2]
[349014730,1736937044446,-171.069804,0.00012188,2]
[349014731,1736937044455,-500.0,0.00012188,2]
[349014732,1736937044464,-175.926455,0.00012188,2]
[349014733,1736937044473,-500.0,0.00012188,2]
[349014734,1736937044482,-500.0,0.00012188,2]
[349014735,1736937044492,-601.03,0.00012188,2]
[349014736,1736937044501,-500.0,0.00012188,2]
[349014737,1736937044509,-525.14,0.00012188,2]
[349014738,1736937044519,-500.0,0.00012188,2]
[349014739,1736937044528,-1262.75,0.00012188,2]
[349014740,1736937044536,-177.27343,0.00012188,2]
[349014741,1736937044549,-500.0,0.00012188,2]
[349014742,1736937044559,-755.67,0.00012188,2]
[349014743,1736937044570,-710.58,0.00012188,2]
[349014744,1736937044580,-1145.95,0.00012188,2]
[349014745,1736937044590,-500.0,0.00012188,2]
[349014746,1736937044599,-500.0,0.00012189,2]
[349014747,1736937044611,-500.0,0.00012189,2]
[349014748,1736937044621,-503.11114143,0.00012189,2]
[349014749,1736937044632,-500.09,0.00012189,2]
[349014750,1736937044641,-508.43258962,0.00012189,2]
[349014751,1736937044651,-500.0,0.00012189,2]
[349014752,1736937044660,-612.18631062,0.00012189,2]
[349014753,1736937044670,-500.0,0.00012189,2]
[349014754,1736937044679,-500.0,0.00012189,2]
[349014755,1736937044689,-500.0,0.00012189,2]
[349014756,1736937044696,-500.0,0.00012189,2]
[349014757,1736937044706,-499.48612346,0.00012189,2]
[349014758,1736937044716,-500.0,0.00012189,2]
[349014759,1736937044725,-500.0,0.00012189,2]
[349014760,1736937044734,-640.94,0.00012189,2]
[349014761,1736937044743,-500.0,0.00012189,2]
[349014762,1736937044752,-500.0,0.00012189,2]
[349014763,1736937044762,-500.0,0.00012189,2]
[349014764,1736937044771,-500.0,0.00012189,2]
[349014765,1736937044780,-500.0,0.00012189,2]
[349014766,1736937044790,-500.0,0.00012189,2]
[349014767,1736937044800,-315.71077394,0.00012189,2]
[349014768,1736937044809,-406.32688421,0.00012189,2]
[349014769,1736937044818,-500.0,0.00012189,2]
[349014770,1736937044827,-517.47365154,0.00012189,2]
[349014771,1736937044836,-504.92032815,0.00012189,2]
[349014772,1736937044846,-503.57471021,0.00012189,2]
[349014773,1736937044857,-502.44990379,0.00012189,2]
[349014774,1736937044867,-503.70562749,0.00012189,2]
[349014775,1736937044876,-500.0,0.00012189,2]
[349014776,1736937044885,-152.0490735,0.00012189,2]
[349014777,1736937044895,-503.38431716,0.00012189,2]
[349014778,1736937044904,-500.0,0.00012189,2]
[349014779,1736937044913,-635.6063734,0.00012189,2]
[349014780,1736937044922,-502.32630478,0.00012189,2]
[349014781,1736937044932,-501.45776227,0.00012189,2]
[349014782,1736937044941,-500.0,0.00012189,2]
[349014783,1736937044950,-500.0,0.00012189,2]
[349014784,1736937044959,-500.0,0.00012189,2]
[349014785,1736937044968,-500.0,0.00012189,2]
[349014786,1736937044977,-500.0,0.00012189,2]
[349014787,1736937044985,-500.0,0.00012189,2]
[349014788,1736937044995,-500.0,0.00012189,2]
[349014789,1736937045004,-500.0,0.00012189,2]
[349014790,1736937045014,-500.0,0.00012189,2]
[349014791,1736937045023,-500.0,0.00012189,2]
[349014792,1736937045032,-500.0,0.00012189,2]
[349014793,1736937045041,-500.0,0.00012189,2]
[349014794,1736937045051,-500.0,0.00012189,2]
[349014795,1736937045060,-500.0,0.00012189,2]
[349014796,1736937045069,-500.0,0.00012189,2]
[349014797,1736937045079,-500.74436053,0.00012189,2]
[349014798,1736937045088,-500.0,0.00012189,2]
[349014799,1736937045097,-501.15164227,0.00012189,2]
[349014800,1736937045107,-500.0,0.00012189,2]
[349014801,1736937045116,-500.0,0.00012189,2]
[349014802,1736937045125,-503.73024387,0.00012189,2]
[349014803,1736937045135,-500.0,0.00012189,2]
[349014804,1736937045144,-500.0,0.00012189,2]
[349014805,1736937045153,-500.50009203,0.00012189,2]
[349014806,1736937045163,-500.0,0.00012189,2]
[349014807,1736937045172,-501.04921203,0.00012189,2]
[349014808,1736937045181,-500.0,0.00012189,2]
[349014809,1736937045190,-500.0,0.00012189,2]
[349014810,1736937045200,-500.0,0.00012189,2]
[349014811,1736937045210,-500.0,0.00012189,2]
[349014812,1736937045220,-500.0,0.00012189,2]
[349014813,1736937045229,-500.0,0.00012189,2]
[349014814,1736937045238,-500.0,0.00012189,2]
[349014815,1736937045247,-500.0,0.00012189,2]
[349014816,1736937045256,-500.0,0.00012189,2]
[349014817,1736937045266,-500.0,0.00012189,2]
[349014818,1736937045275,-500.0,0.00012189,2]
[349014819,1736937045284,-500.0,0.00012189,2]
[349014820,1736937045294,-500.0,0.00012189,2]
[349014821,1736937045303,-500.0,0.00012189,2]
[349014822,1736937045312,-500.0,0.00012189,2]
[349014823,1736937045322,-500.0,0.00012189,2]
[349014824,1736937045331,-500.0,0.00012189,2]
[349014825,1736937045340,-500.0,0.00012189,2]
[349014826,1736937045349,-500.0,0.00012189,2]
[349014827,1736937045359,-500.0,0.00012189,2]
[349014828,1736937045369,-500.0,0.00012189,2]
[349014829,1736937045379,-501.49181459,0.00012189,2]
[349014830,1736937045388,-500.0,0.00012189,2]
[349014831,1736937045398,-500.0,0.00012189,2]
[349014832,1736937045407,-500.0,0.00012189,2]
[349014833,1736937045416,-541.77174875,0.00012189,2]
[349014834,1736937045425,-500.0,0.00012189,2]
[349014835,1736937045434,-500.0,0.00012189,2]
[349014836,1736937045443,-500.0,0.00012189,2]
[349014837,1736937045453,-500.0,0.00012189,2]
[349014838,1736937045462,-500.0,0.00012189,2]
[349014839,1736937045471,-500.0,0.00012189,2]
[349014840,1736937045481,-500.0,0.00012189,2]
[349014841,1736937045490,-500.0,0.00012189,2]
[349014842,1736937045499,-500.0,0.00012189,2]
[349014843,1736937045508,-500.0,0.00012189,2]
[349014844,1736937045517,-500.0,0.00012189,2]
[349014845,1736937045526,-500.0,0.00012189,2]
[349014846,1736937045535,-500.0,0.00012189,2]
[349014847,1736937045545,-500.3439747,0.00012189,2]
[349014848,1736937045557,-500.0,0.00012189,2]
[349014849,1736937045566,-500.0,0.00012189,2]
[349014850,1736937045576,-500.0,0.00012189,2]
[349014851,1736937045585,-500.0,0.00012189,2]
[349014852,1736937045595,-500.0,0.00012189,2]
[349014853,1736937045604,-500.0,0.00012189,2]
[349014854,1736937045613,-500.0,0.00012189,2]
[349014855,1736937045624,-500.0,0.00012189,2]
[349014856,1736937045633,-500.0,0.00012189,2]
[349014857,1736937045643,-501.00245519,0.00012189,2]
[349014858,1736937045653,-500.86905218,0.00012189,2]
[349014860,1736937045663,-501.44846439,0.00012189,2]
[349014861,1736937045673,-500.0,0.00012189,2]
[349014862,1736937045682,-628.34862903,0.00012189,2]
[349014863,1736937045692,-502.11587411,0.00012189,2]
[349014864,1736937045702,-500.0,0.00012189,2]
[349014865,1736937045711,-501.75369422,0.00012189,2]
[349014866,1736937045720,-503.91806048,0.00012189,2]
[349014867,1736937045731,-500.93589197,0.00012189,2]
[349014868,1736937045741,-504.24701046,0.00012189,2]
[349014869,1736937045751,-500.0,0.00012189,2]
[349014870,1736937045760,-500.0,0.00012189,2]
[349014871,1736937045770,-500.0,0.00012189,2]
[349014872,1736937045780,-500.0,0.00012189,2]
[349014873,1736937045790,-500.0,0.00012189,2]